fUSD/lending_fUSD_20250602
["ID","MTS","AMOUNT","RATE_DAILY","PERIOD"]
[363851025,1748898656760,-1603.2441338,0.00035,30]
[363851026,1748898656776,-5000.0,0.00035,2]
[363851027,1748898656788,-6584.50693374,0.00035,30]
[363851028,1748898656799,-5033.0,0.00035,30]
[363851029,1748898656809,-2445.50500282,0.00035,90]
[363851030,1748898656819,-661.45358553,0.00035,2]
[363851031,1748898656828,-10691.25,0.00035,14]
[363851032,1748898656839,-237.8,0.00035,2]
[363851033,1748898656848,-1305.09316284,0.00035,120]
[363851035,1748898656857,-189702.3,0.00035,14]
[363851037,1748898656866,-4000.0,0.00035,4]
[363851039,1748898656876,-161.0,0.00035,30]
[363851041,1748898656885,-1800.0,0.00035,36]
[363851042,1748898656898,-1975.4290623,0.00035,30]
[363851045,1748898656908,-204.0,0.00035064,16]
[363851047,1748898656918,-522.78171402,0.00035083,7]
[363851048,1748898656928,-2139.87125904,0.000351,5]
[363851050,1748898656938,-152.0,0.00035209,14]
[363851053,1748898656947,-600.0,0.00035279,7]
[363851055,1748898656957,-500.0,0.00035281,7]
[363851056,1748898656966,-627.36,0.00035285,2]
[363851058,1748898656976,-500.0,0.0003529,7]
[363851060,1748898656987,-600.0,0.00035292,7]
[363851062,1748898656996,-2500.0,0.000353,14]
[363851064,1748898657006,-2000.0,0.000353,2]
[363851066,1748898657017,-5562.0,0.000353,3]
[363851068,1748898657027,-500.0,0.00035302,60]
[363851070,1748898657038,-150.0,0.00035328,2]
[363851073,1748898657051,-600.0,0.00035338,7]
[363851075,1748898657066,-600.0,0.00035351,7]
[363851078,1748898657080,-1060.35,0.00035424,2]
[363851080,1748898657092,-985.52,0.00035438,12]
[363851082,1748898657107,-1000.0,0.000355,2]
[363851085,1748898657122,-3169.77,0.000355,7]
[363851087,1748898657137,-150.0,0.00035521,2]
[363851090,1748898657151,-150.0,0.00035532,2]
[363851092,1748898657165,-267.46074303,0.00035549,2]
[363851095,1748898657178,-860.0,0.00035616,60]
[363851097,1748898657193,-200.0,0.00035616,60]
[363851100,1748898657208,-1613.0,0.00035681,2]
[363851102,1748898657222,-600.22501597,0.00035693,37]
[363851105,1748898657239,-189702.3,0.000357,14]
[363851108,1748898657254,-500.0,0.0003575,7]
[363851110,1748898657269,-1253.0,0.00035763,2]
[363851113,1748898657284,-150.0,0.00035786,2]
[363851115,1748898657299,-150.0,0.000358,7]
[363851118,1748898657313,-150.0,0.00035839,2]
[363851120,1748898657328,-150.0,0.00035873,2]
[363851122,1748898657341,-3140.0,0.0003588,5]
[363851125,1748898657354,-662.8152,0.00035888,30]
[363851127,1748898657366,-150.0,0.00035891,2]
[363851130,1748898657383,-6771.20173135,0.000359,7]
[363851132,1748898657395,-5562.0,0.000359,5]
[363851134,1748898657406,-13723.61685851,0.0003591,2]
[363851137,1748898657420,-179.69,0.0003591,2]
[363851139,1748898657435,-150.0,0.00035917,2]
[363851141,1748898657446,-150.0,0.00035922,2]
[363851144,1748898657458,-985.52,0.00035986,13]
[363851146,1748898657470,-150.0,0.00035992,2]
[363851148,1748898657482,-1800.0,0.00036,37]
[363851151,1748898657497,-4000.0,0.00036,4]
[363851153,1748898657512,-228056.20322161,0.00036,2]
[363851156,1748898657525,-150.0,0.00036,2]
[363851158,1748898657542,-500.0,0.00036,10]
[363851160,1748898657555,-1000.0,0.00036,2]
[363851163,1748898657568,-5000.0,0.00036,2]
[363851165,1748898657581,-660.0,0.00036,30]
[363851167,1748898657593,-1044.71373043,0.00036,120]
[363851170,1748898657609,-214.0,0.00036,2]
[363851172,1748898657622,-1000.0,0.00036028,2]
[363851174,1748898657635,-500.0,0.00036036,7]
[363851177,1748898657647,-150.0,0.00036039,2]
[363851179,1748898657660,-150.0,0.00036049,2]
[363851181,1748898657673,-150.0,0.0003605,2]
[363851184,1748898657686,-152.0,0.00036056,15]
[363851186,1748898657699,-662.8152,0.00036088,30]
[363851188,1748898657711,-591.55785023,0.00036096,2]
[363851191,1748898657724,-500.0,0.00036096,7]
[363851193,1748898657736,-150.0,0.00036136,2]
[363851195,1748898657750,-500.0,0.00036216,7]
[363851198,1748898657762,-500.0,0.00036217,7]
[363851200,1748898657775,-162.0,0.00036247,30]
[363851202,1748898657788,-150.0,0.00036274,2]
[363851205,1748898657800,-662.8152,0.00036288,30]
[363851207,1748898657813,-150.0,0.00036309,2]
[363851209,1748898657825,-347.34,0.00036367,2]
[363851212,1748898657839,-500.0,0.00036398,60]
[363851214,1748898657851,-500.0,0.00036406,7]
[363851217,1748898657867,-1000.0,0.0003643,7]
[363851219,1748898657879,-233.39858433,0.00036468,2]
[363851221,1748898657892,-150.0,0.00036468,2]
[363851224,1748898657904,-662.8152,0.00036488,30]
[363851226,1748898657917,-1876.67136578,0.0003649,2]
[363851228,1748898657929,-7451.49898354,0.0003649,2]
[363851230,1748898657944,-1000.0,0.000365,2]
[363851233,1748898657956,-150.0,0.00036502,2]
[363851235,1748898657970,-150.0,0.00036522,2]
[363851238,1748898657983,-985.52,0.00036534,14]
[363851240,1748898657996,-150.0,0.00036535,2]
[363851242,1748898658011,-300.0,0.00036616,5]
[363851245,1748898658022,-150.0,0.0003663,2]
[363851247,1748898658033,-2031.0,0.00036654,20]
[363851249,1748898658045,-500.0,0.00036656,7]
[363851251,1748898658056,-150.0,0.00036663,2]
[363851254,1748898658068,-500.0,0.00036685,7]
[363851256,1748898658082,-662.8152,0.00036688,30]
[363851258,1748898658095,-390.0,0.000367,2]
[363851260,1748898658107,-1200.0,0.000367,2]
[363851263,1748898658118,-525.0,0.000367,2]
[363851265,1748898658130,-150.0,0.00036729,7]
[363851267,1748898658141,-150.0,0.00036749,2]
[363851269,1748898658152,-150.0,0.00036751,2]
[363851271,1748898658164,-600.0,0.00036754,7]
[363851274,1748898658176,-150.0,0.0003677,2]
[363851276,1748898658188,-150.0,0.00036778,2]
[363851278,1748898658200,-8055.91183554,0.00036793,2]
[363851280,1748898658212,-5000.0,0.00036793,2]
[363851283,1748898658223,-5000.0,0.00036793,2]
[363851285,1748898658234,-5000.0,0.00036826,2]
[363851287,1748898658247,-5000.0,0.00036826,2]
[363851289,1748898658257,-7984.55670826,0.00036835,2]
[363851291,1748898658269,-2209.384,0.00036888,7]
[363851294,1748898658281,-662.8152,0.00036888,30]
[363851296,1748898658292,-1672.53740809,0.000369,120]
[363851298,1748898658303,-150.0,0.00036901,2]
[363851300,1748898658315,-152.0,0.00036904,16]
[363851302,1748898658327,-150.0,0.00036909,2]
[363851305,1748898658340,-277.35679052,0.00036918,2]
[363851307,1748898658353,-150.0,0.00036936,2]
[363851309,1748898658364,-1000.0,0.0003697,30]
[363851311,1748898658376,-150.0,0.00036985,2]
[363851313,1748898658387,-500.0,0.00036986,2]
[363851316,1748898658398,-150.0,0.00037,2]
[363851318,1748898658410,-1000.0,0.00037,2]
[363851320,1748898658422,-5000.0,0.00037,2]
[363851322,1748898658434,-3500.0,0.00037,5]
[363851325,1748898658446,-1800.0,0.00037,38]
[363851327,1748898658457,-660.0,0.00037,30]
[363851329,1748898658469,-10691.25,0.00037,14]
[363851330,1748898658480,-4000.0,0.00037,4]
[363851331,1748898658492,-150.0,0.0003701,2]
[363851332,1748898658504,-150.0,0.00037013,2]
[363851333,1748898658515,-150.0,0.00037017,2]
[363851334,1748898658526,-2031.0,0.00037032,20]
[363851335,1748898658537,-325.0,0.00037042,30]
[363851336,1748898658548,-150.0,0.00037069,2]
[363851338,1748898658560,-985.52,0.00037082,15]
[363851340,1748898658571,-662.8152,0.00037088,30]
[363851343,1748898658584,-150.0,0.0003713,2]
[363851345,1748898658596,-150.0,0.00037135,2]
[363851347,1748898658610,-600.0,0.00037138,7]
[363851349,1748898658621,-150.0,0.00037171,2]
[363851351,1748898658633,-150.0,0.00037172,7]
[363851353,1748898658644,-150.0,0.00037181,2]
[363851355,1748898658656,-600.0,0.00037194,7]
[363851358,1748898658667,-150.0,0.00037266,7]
[363851360,1748898658678,-150.0,0.00037266,2]
[363851362,1748898658690,-662.8152,0.00037288,30]
[363851364,1748898658703,-150.0,0.00037297,2]
[363851366,1748898658714,-150.0,0.00037298,2]
[363851369,1748898658726,-300.0,0.000373,2]
[363851371,1748898658738,-300.0,0.000373,2]
[363851373,1748898658749,-300.0,0.000373,2]
[363851375,1748898658761,-300.0,0.000373,2]
[363851377,1748898658772,-313.33798487,0.000373,2]
[363851380,1748898658784,-1000.0,0.00037309,7]
[363851382,1748898658795,-150.0,0.00037324,2]
[363851384,1748898658806,-150.0,0.00037358,2]
[363851386,1748898658818,-150.0,0.00037376,2]
[363851389,1748898658830,-2000.0,0.00037378,31]
[363851391,1748898658841,-2031.0,0.00037409,20]
[363851393,1748898658854,-590.18031542,0.00037458,7]
[363851396,1748898658866,-150.0,0.00037459,7]
[363851398,1748898658880,-662.8152,0.00037488,30]
[363851400,1748898658893,-150.0,0.00037491,2]
[363851403,1748898658906,-500.0,0.00037494,60]
[363851405,1748898658920,-1000.0,0.000375,2]
[363851408,1748898658932,-190.0,0.000375,31]
[363851410,1748898658945,-150.0,0.00037504,2]
[363851412,1748898658958,-150.0,0.00037521,2]
[363851415,1748898658971,-627.36,0.00037549,2]
[363851417,1748898658984,-4222.06209914,0.0003759,2]
[363851420,1748898658998,-150.0,0.00037599,2]
[363851422,1748898659011,-150.0,0.00037615,2]
[363851424,1748898659025,-985.52,0.0003763,16]
[363851427,1748898659038,-150.0,0.00037659,2]
[363851429,1748898659051,-150.0,0.00037662,2]
[363851432,1748898659064,-662.8152,0.00037688,30]
[363851434,1748898659078,-508.23593628,0.00037734,7]
[363851437,1748898659091,-347.34,0.00037737,2]
[363851439,1748898659107,-152.0,0.00037751,17]
[363851441,1748898659120,-150.0,0.00037764,2]
[363851444,1748898659133,-983.42351382,0.00037775,7]
[363851446,1748898659146,-150.0,0.00037776,2]
[363851448,1748898659159,-2031.0,0.00037787,20]
[363851451,1748898659172,-662.36232125,0.00037787,20]
[363851453,1748898659186,-150.0,0.00037795,2]
[363851456,1748898659200,-150.0,0.00037806,7]
[363851458,1748898659213,-150.0,0.00037833,2]
[363851460,1748898659226,-204.0,0.00037835,21]
[363851463,1748898659239,-662.8152,0.00037888,30]
[363851465,1748898659253,-150.0,0.00037888,2]
[363851468,1748898659266,-591.55785023,0.00037894,2]
[363851470,1748898659279,-150.0,0.00037923,2]
[363851472,1748898659292,-150.0,0.00037939,2]
[363851475,1748898659305,-502.03121575,0.00037956,7]
[363851477,1748898659317,-150.0,0.00037977,2]
[363851479,1748898659330,-4286.35676,0.00037982,30]
[363851482,1748898659344,-174.21352055,0.00037999,120]
[363851484,1748898659358,-5274.0,0.00038,37]
[363851487,1748898659372,-11634.03606753,0.00038,10]
[363851489,1748898659385,-1000.0,0.00038,30]
[363851492,1748898659397,-500.0,0.00038,30]
[363851494,1748898659407,-1000.0,0.00038,2]
[363851496,1748898659418,-5000.0,0.00038,2]
[363851498,1748898659427,-500.0,0.00038,2]
[363851516,1748898659586,-6000.0,0.00038,30]
[363851518,1748898659596,-93696.83185596,0.00038,30]
[363851520,1748898659610,-1800.0,0.00038,39]
[363851522,1748898659619,-5987.18663552,0.00038,7]
[363851524,1748898659628,-162.19052569,0.00038,4]
[363851526,1748898659638,-660.0,0.00038,30]
[363851528,1748898659648,-4000.0,0.00038,4]
[363851530,1748898659657,-683.43,0.00038021,2]
[363851532,1748898659666,-150.0,0.00038035,7]
[363851534,1748898659676,-150.0,0.00038044,2]
[363851536,1748898659686,-150.0,0.0003806,2]
[363851538,1748898659695,-460.6,0.00038087,2]
[363851540,1748898659704,-1058.49,0.00038087,2]
[363851542,1748898659714,-1613.98,0.00038087,2]
[363851544,1748898659723,-662.8152,0.00038088,30]
[363851546,1748898659732,-500.0,0.00038095,7]
[363851548,1748898659742,-2000.0,0.000381,2]
[363851551,1748898659751,-150.0,0.00038126,2]
[363851553,1748898659761,-150.0,0.00038133,2]
[363851554,1748898659772,-150.0,0.00038142,2]
[363851556,1748898659783,-150.0,0.00038157,2]
[363851559,1748898659792,-2031.0,0.00038165,20]
[363851561,1748898659802,-150.0,0.00038168,2]
[363851563,1748898659811,-985.52,0.00038178,17]
[363851565,1748898659821,-150.0,0.00038212,2]
[363851567,1748898659832,-150.0,0.00038221,2]
[363851569,1748898659840,-150.0,0.00038244,2]
[363851571,1748898659850,-200.0,0.00038253,5]
[363851573,1748898659859,-1000.0,0.00038282,7]
[363851575,1748898659869,-287.61899177,0.00038287,2]
[363851577,1748898659882,-662.8152,0.00038288,30]
[363851578,1748898659892,-407.988,0.00038356,7]
[363851581,1748898659901,-214.11772264,0.00038356,60]
[363851582,1748898659911,-177.67755086,0.00038356,2]
[363851585,1748898659921,-477.10885075,0.00038368,7]
[363851587,1748898659932,-150.0,0.00038386,30]
[363851588,1748898659941,-1424.77457526,0.00038386,30]
[363851591,1748898659951,-150.0,0.00038386,30]
[363851593,1748898659960,-217.51121271,0.00038386,30]
[363851595,1748898659969,-906.7777447,0.00038386,30]
[363851596,1748898659979,-150.0,0.00038415,7]
[363851599,1748898659990,-150.0,0.00038426,2]
[363851601,1748898659999,-500.0,0.00038439,7]
[363851603,1748898660009,-150.0,0.00038454,2]
[363851604,1748898660018,-150.0,0.00038466,2]
[363851605,1748898660027,-150.0,0.00038487,2]
[363851606,1748898660036,-662.8152,0.00038488,30]
[363851607,1748898660046,-150.0,0.00038495,2]
[363851608,1748898660055,-1000.0,0.000385,2]
[363851609,1748898660064,-150.0,0.00038515,2]
[363851610,1748898660074,-2031.0,0.00038543,20]
[363851611,1748898660084,-150.0,0.00038544,2]
[363851612,1748898660093,-150.0,0.00038545,2]
[363851614,1748898660105,-150.0,0.00038564,2]
[363851616,1748898660114,-150.0,0.00038579,2]
[363851618,1748898660124,-226.31603333,0.0003859,60]
[363851620,1748898660135,-152.0,0.00038598,18]
[363851622,1748898660144,-500.0,0.00038603,7]
[363851624,1748898660154,-158.91123783,0.00038607,7]
[363851626,1748898660165,-150.0,0.00038623,2]
[363851628,1748898660175,-150.0,0.00038633,2]
[363851630,1748898660184,-300.0,0.00038633,2]
[363851632,1748898660195,-500.0,0.0003864,7]
[363851634,1748898660204,-662.8152,0.00038688,30]
[363851636,1748898660214,-2258.0,0.00038704,5]
[363851638,1748898660223,-985.52,0.00038726,18]
[363851640,1748898660233,-150.0,0.00038733,2]
[363851641,1748898660243,-1253.0,0.00038763,2]
[363851643,1748898660252,-102995.6952435,0.00038767,2]
[363851645,1748898660262,-150.0,0.00038773,2]
[363851647,1748898660272,-150.0,0.00038774,2]
[363851649,1748898660281,-163.72984,0.000388,8]
[363851651,1748898660292,-2836.481887,0.00038806,7]
[363851654,1748898660301,-1437.18503,0.00038806,7]
[363851655,1748898660311,-740.87635645,0.00038821,7]
[363851657,1748898660321,-1000.0,0.00038871,7]
[363851659,1748898660331,-150.0,0.00038877,2]
[363851662,1748898660342,-1000.00000001,0.000389,30]
[363851664,1748898660358,-492.82882465,0.000389,120]
[363851666,1748898660368,-400.0,0.000389,14]
[363851668,1748898660379,-150.0,0.00038904,2]
[363851670,1748898660389,-2031.0,0.00038921,20]
[363851671,1748898660398,-150.0,0.00038933,2]
[363851674,1748898660409,-150.0,0.00038936,2]
[363851675,1748898660419,-150.0,0.0003895,2]
[363851678,1748898660428,-1000.0,0.00038951,7]
[363851680,1748898660438,-150.0,0.00038953,7]
[363851682,1748898660447,-4360.1220474,0.00038956,2]
[363851684,1748898660457,-4360.1220474,0.00038956,2]
[363851686,1748898660467,-2000.0,0.0003896,48]
[363851688,1748898660476,-1110.45988697,0.00038982,5]
[363851690,1748898660485,-1130.3789158,0.00038982,5]
[363851692,1748898660496,-1028.2444426,0.00038982,5]
[363851694,1748898660505,-1163.79668445,0.00038982,5]
[363851695,1748898660514,-1027.16036464,0.00038982,5]
[363851697,1748898660523,-1007.34629772,0.00038982,5]
[363851699,1748898660532,-1032.11513107,0.00038982,5]
[363851701,1748898660542,-1118.60383797,0.00038982,5]
[363851703,1748898660551,-466.59717681,0.00038987,30]
[363851705,1748898660560,-7591.86275986,0.0003899,14]
[363851707,1748898660569,-69671.43463252,0.00039,10]
[363851709,1748898660579,-5000.0,0.00039,36]
[363851711,1748898660588,-1000.0,0.00039,2]
[363851713,1748898660598,-1000.0,0.00039,30]
[363851715,1748898660611,-1000.0,0.00039,2]
[363851717,1748898660620,-5000.0,0.00039,2]
[363851719,1748898660630,-100000.0,0.00039,30]
[363851721,1748898660639,-1447.38923409,0.00039,2]
[363851723,1748898660648,-4419.77365956,0.00039,30]
[363851725,1748898660658,-1532.38119678,0.00039,30]
[363851727,1748898660667,-1800.0,0.00039,40]
[363851729,1748898660677,-660.0,0.00039,30]
[363851731,1748898660687,-4561.37389031,0.00039,10]
[363851733,1748898660697,-10691.25,0.00039,14]
[363851735,1748898660706,-1399.18686278,0.00039,10]
[363851737,1748898660715,-282.37830909,0.00039,120]
[363851739,1748898660725,-195.87745399,0.00039,120]
[363851741,1748898660734,-4000.0,0.00039,8]
[363851743,1748898660745,-214.0,0.00039,2]
[363851745,1748898660754,-1000.0,0.00039006,7]
[363851747,1748898660764,-150.0,0.00039011,2]
[363851749,1748898660774,-150.0,0.00039022,2]
[363851750,1748898660783,-1000.0,0.00039034,7]
[363851751,1748898660792,-150.0,0.00039058,2]
[363851752,1748898660801,-150.0,0.00039059,2]
[363851753,1748898660811,-150.0,0.00039071,2]
[363851754,1748898660820,-662.8152,0.00039088,30]
[363851755,1748898660829,-2110.0,0.00039096,2]
[363851756,1748898660838,-347.34,0.00039107,2]
[363851757,1748898660848,-538.86229347,0.00039125,7]
[363851758,1748898660857,-150.0,0.00039128,2]
[363851759,1748898660866,-1000.0,0.00039135,7]
[363851760,1748898660875,-150.0,0.00039144,7]
[363851761,1748898660884,-150.0,0.00039155,2]
[363851762,1748898660893,-150.0,0.00039198,2]
[363851763,1748898660902,-1000.0,0.00039207,7]
[363851764,1748898660911,-150.0,0.00039228,2]
[363851765,1748898660921,-1000.0,0.00039252,7]
[363851767,1748898660930,-150.0,0.00039268,2]
[363851768,1748898660939,-985.52,0.00039274,19]
[363851770,1748898660949,-662.8152,0.00039288,30]
[363851772,1748898660959,-1000.0,0.0003929,7]
[363851774,1748898660968,-150.0,0.00039297,2]
[363851775,1748898660977,-1000.0,0.00039299,7]
[363851777,1748898660987,-1215.97070746,0.000393,30]
[363851779,1748898660997,-1000.0,0.00039303,2]
[363851781,1748898661006,-150.0,0.00039323,2]
[363851783,1748898661015,-150.0,0.00039327,2]
[363851785,1748898661024,-2000.0,0.0003936,48]
[363851787,1748898661034,-150.0,0.00039362,2]
[363851789,1748898661044,-150.0,0.00039364,2]
[363851791,1748898661054,-150.0,0.00039367,2]
[363851793,1748898661063,-150.0,0.00039372,2]
[363851795,1748898661072,-150.0,0.00039377,2]
[363851797,1748898661082,-150.0,0.00039388,2]
[363851799,1748898661091,-1000.0,0.00039398,30]
[363851801,1748898661100,-4525.11700849,0.000394,30]
[363851803,1748898661110,-2047.42158511,0.000394,30]
[363851805,1748898661119,-47597.68874412,0.0003942,2]
[363851807,1748898661128,-150.0,0.00039422,2]
[363851809,1748898661138,-300.0,0.00039424,5]
[363851811,1748898661147,-150.0,0.00039444,2]
[363851813,1748898661157,-152.0,0.00039445,19]
[363851814,1748898661167,-150.0,0.00039447,2]
[363851815,1748898661176,-1028.97,0.00039452,9]
[363851816,1748898661186,-170.43,0.00039457,2]
[363851817,1748898661195,-150.0,0.00039457,2]
[363851818,1748898661204,-150.0,0.00039457,2]
[363851819,1748898661214,-150.0,0.00039457,2]
[363851820,1748898661223,-150.0,0.00039458,2]
[363851821,1748898661232,-600.0,0.00039469,7]
[363851822,1748898661241,-24431.3629445,0.00039473,2]
[363851823,1748898661251,-1000.0,0.00039485,7]
[363851824,1748898661260,-662.8152,0.00039488,30]
[363851825,1748898661269,-150.0,0.00039495,2]
[363851826,1748898661278,-150.0,0.00039498,2]
[363851827,1748898661287,-1000.0,0.000395,2]
[363851828,1748898661296,-1000.0,0.000395,10]
[363851829,1748898661306,-1002.73,0.000395,7]
[363851830,1748898661315,-700000.0,0.000395,60]
[363851831,1748898661324,-1000.0,0.00039508,7]
[363851832,1748898661335,-1262.83,0.00039522,30]
[363851833,1748898661344,-150.0,0.00039531,7]
[363851834,1748898661354,-151.31088441,0.00039535,2]
[363851835,1748898661363,-150.0,0.00039542,2]
[363851836,1748898661373,-198.88090814,0.00039549,30]
[363851837,1748898661382,-2153.77480631,0.00039549,30]
[363851838,1748898661391,-150.0,0.00039549,2]
[363851839,1748898661401,-1888.00000001,0.00039564,30]
[363851841,1748898661411,-156.0,0.00039564,30]
[363851843,1748898661421,-300.0,0.0003957,2]
[363851845,1748898661430,-208.07483033,0.00039582,17]
[363851847,1748898661439,-150.0,0.00039592,2]
[363851849,1748898661449,-165.55528952,0.00039594,4]
[363851851,1748898661458,-150.0,0.00039595,2]
[363851853,1748898661467,-2110.0,0.00039596,2]
[363851855,1748898661477,-150.0,0.00039613,2]
[363851857,1748898661486,-150.0,0.00039613,2]
[363851858,1748898661496,-1000.0,0.00039617,7]
[363851860,1748898661505,-150.0,0.00039627,2]
[363851862,1748898661514,-600.22501597,0.00039632,49]
[363851864,1748898661524,-150.0,0.00039654,2]
[363851866,1748898661534,-298.26089446,0.00039656,2]
[363851868,1748898661544,-150.0,0.00039668,2]
[363851870,1748898661554,-150.0,0.00039669,2]
[363851872,1748898661563,-150.0,0.00039682,2]
[363851874,1748898661572,-166.71,0.00039683,2]
[363851876,1748898661582,-662.8152,0.00039688,30]
[363851878,1748898661591,-591.55785023,0.00039693,2]
[363851880,1748898661601,-2883.12,0.000397,22]
[363851881,1748898661615,-500.0,0.00039718,30]
[363851883,1748898661625,-1028.97,0.00039726,9]
[363851885,1748898661634,-150.0,0.00039735,2]
[363851887,1748898661643,-307.63133014,0.00039738,7]
[363851889,1748898661654,-600.0,0.00039741,7]
[363851890,1748898661663,-150.0,0.00039752,2]
[363851892,1748898661673,-150.0,0.0003976,2]
[363851894,1748898661683,-2381.778627,0.00039766,2]
[363851896,1748898661692,-2302.1518096,0.00039766,2]
[363851898,1748898661702,-2222.5249921,0.00039766,2]
[363851900,1748898661711,-2142.8981747,0.00039766,2]
[363851902,1748898661720,-36190.04041547,0.00039768,2]
[363851904,1748898661730,-13064.9128535,0.00039779,2]
[363851906,1748898661740,-1698.4627626,0.00039779,2]
[363851908,1748898661750,-907.62,0.0003978,120]
[363851910,1748898661759,-907.61,0.0003978,120]
[363851912,1748898661768,-873.43835769,0.00039782,2]
[363851914,1748898661778,-200.0,0.00039782,2]
[363851916,1748898661789,-7587.56182262,0.00039782,120]
[363851918,1748898661799,-150.0,0.00039784,7]
[363851920,1748898661808,-500.0,0.00039784,7]
[363851922,1748898661817,-1000.0,0.00039786,120]
[363851924,1748898661826,-1000.0,0.00039786,120]
[363851926,1748898661836,-1000.0,0.00039786,120]
[363851928,1748898661845,-1000.0,0.00039786,120]
[363851930,1748898661854,-2000.0,0.00039786,2]
[363851932,1748898661864,-200.0,0.00039786,2]
[363851934,1748898661874,-263.81529554,0.00039786,2]
[363851936,1748898661884,-200.0,0.00039786,2]
[363851938,1748898661893,-1000.0,0.00039786,120]
[363851940,1748898661903,-2022.0,0.0003979,48]
[363851942,1748898661913,-200.0,0.00039793,14]
[363851944,1748898661922,-200.0,0.00039806,2]
[363851946,1748898661931,-150.0,0.00039806,7]
[363851948,1748898661941,-21922.01686458,0.00039806,7]
[363851950,1748898661951,-10643.70818863,0.00039806,3]
[363851952,1748898661961,-1210.0,0.00039806,2]
[363851954,1748898661971,-704.94462536,0.00039806,2]
[363851956,1748898661980,-363.01266681,0.00039806,2]
[363851958,1748898661989,-1992.02740782,0.00039806,5]
[363851960,1748898662004,-708.17830921,0.00039806,10]
[363851961,1748898662013,-349.11738869,0.00039806,2]
[363851963,1748898662023,-621.52761694,0.00039806,6]
[363851964,1748898662032,-1029.38168846,0.00039806,15]
[363851965,1748898662041,-966.89586861,0.00039806,20]
[363851966,1748898662051,-763.42281779,0.00039806,2]
[363851967,1748898662061,-1524.3899819,0.00039806,2]
[363851968,1748898662070,-1031.95364312,0.00039806,2]
[363851969,1748898662080,-5198.77034793,0.00039806,2]
[363851970,1748898662090,-532.83574359,0.00039806,7]
[363851971,1748898662099,-636811.20614871,0.00039806,5]
[363851972,1748898662108,-2462.14484841,0.00039806,2]
[363851973,1748898662118,-300.0,0.00039806,15]
[363851975,1748898662127,-2712.41523307,0.00039806,2]
[363851977,1748898662137,-358.42509205,0.00039806,2]
[363851979,1748898662146,-151.66017018,0.00039806,2]
[363851981,1748898662156,-44055.15278387,0.00039806,2]
[363851983,1748898662167,-980.17855221,0.00039806,5]
[363851985,1748898662178,-2293.0517915,0.00039806,14]
[363851987,1748898662187,-249.71747993,0.00039806,2]
[363851989,1748898662197,-164.80563044,0.00039806,2]
[363851991,1748898662206,-654.66981037,0.00039806,2]
[363851992,1748898662216,-1264.66297649,0.00039806,2]
[363851994,1748898662226,-243.91178957,0.00039806,2]
[363851996,1748898662235,-7741.52909012,0.00039806,2]
[363851998,1748898662246,-190018.59419639,0.00039806,3]
[363852000,1748898662255,-1244.60323637,0.00039806,15]
[363852001,1748898662265,-1043.89728119,0.00039806,2]
[363852002,1748898662274,-594.11370281,0.00039806,5]
[363852003,1748898662283,-596.1927169,0.00039806,2]
[363852004,1748898662293,-9260.63649981,0.00039806,2]
[363852006,1748898662302,-1314.67617601,0.00039806,2]
[363852008,1748898662311,-1000.0,0.00039806,10]
[363852009,1748898662320,-3428.18481881,0.00039806,2]